fUST/lending_fUST_20240822
["ID","MTS","AMOUNT","RATE_DAILY","PERIOD"]
[335555920,1724325128935,-335.11474461,0.00035,120]
[335555921,1724325128974,-208.57,0.00035,120]
[335555922,1724325129013,-500.0,0.00035,120]
[335555923,1724325129050,-500.0,0.00035,120]
[335555924,1724325129089,-500.0,0.00035,120]
[335555925,1724325129126,-622.0,0.00035,120]
[335555926,1724325129162,-20000.0,0.00035,120]
[335555927,1724325129198,-150.0,0.00035,30]
[335555928,1724325129237,-200.0,0.00035,120]
[335555929,1724325129275,-20327.0,0.00035,30]
[335555930,1724325129316,-500.0,0.00035616,30]
[335555931,1724325129368,-529.17959087,0.00035616,30]
[335555932,1724325129408,-389.388588,0.00035616,120]
[335555935,1724325146074,-59625.35372236,0.00035095,120]
[335555936,1724325146115,-202.02092072,0.00035095,30]
[335555937,1724325146159,-54063.40520299,0.00035095,120]
[335555938,1724325146202,-312.06698914,0.00035095,120]
[335555939,1724325146245,-19061.0,0.00035095,30]
[335555940,1724325146289,-67474.62179914,0.00035095,120]
[335555944,1724325177568,-2013.9,0.000244,14]
[335555945,1724325177611,-834.12,0.000249,14]
[335555946,1724325177668,-2013.9,0.000271,14]
[335555947,1724325177712,-834.12,0.00028,14]
[335555948,1724325177759,-2013.9,0.000306,14]
[335555949,1724325177807,-141039.14,0.000329,14]
[335555950,1724325177842,-834.12,0.000332,14]
[335555951,1724325177880,-5000.0,0.000335,20]
[335555952,1724325177915,-2013.9,0.000338,14]
[335555953,1724325177949,-141039.14,0.00034,14]
[335555954,1724325177981,-19000.0,0.00034,30]
[335555955,1724325178019,-10071.53660762,0.00035,14]
[335555956,1724325178054,-500.0,0.00035,14]
[335555957,1724325178091,-10000.0,0.00035,25]
[335555958,1724325178126,-1307.810875,0.00035,28]
[335555959,1724325178163,-39716.55332888,0.00035,10]
[335555960,1724325178199,-141039.14,0.000351,14]
[335555961,1724325178234,-500.0,0.00035274,14]
[335555962,1724325178269,-500.0,0.00035548,14]
[335555963,1724325178303,-151.0,0.00035808,120]
[335555964,1724325178337,-500.0,0.00035822,14]
[335555965,1724325178370,-250.0,0.00036,30]
[335555966,1724325178404,-300.0,0.00036,120]
[335555967,1724325178438,-10058.27798548,0.00036,30]
[335555968,1724325178471,-24103.71373974,0.00036,90]
[335555969,1724325178510,-425.19634389,0.0003609,120]
[335555970,1724325178544,-500.0,0.00036096,14]
[335555971,1724325178580,-541.9435763,0.0003637,14]
[335555972,1724325178613,-2013.9,0.000364,14]
[335555973,1724325178647,-10000.0,0.000365,30]
[335555974,1724325178680,-1244.98,0.000365,30]
[335555975,1724325178714,-834.12,0.000366,14]
[335555976,1724325178748,-228.1,0.00036922,15]
[335555977,1724325178781,-151.0,0.00036922,15]
[335555978,1724325178816,-1321.0,0.00037,20]
[335555979,1724325178851,-151.0,0.0003726,120]
[335555980,1724325178888,-151.0,0.00037507,120]
[335555981,1724325178924,-232.0,0.000376,15]
[335555982,1724325178959,-231365.75840392,0.0003788,120]
[335555983,1724325178994,-527.11957315,0.00038,30]
[335555984,1724325179030,-10000.0,0.000385,35]
[335555985,1724325179067,-300.0,0.000386,16]
[335555986,1724325179106,-151.0,0.00038712,120]
[335555987,1724325179148,-228.1,0.00038797,15]
[335555988,1724325179186,-151.0,0.00038797,15]
[335555989,1724325179226,-487.60903708,0.000388,120]
[335555990,1724325179263,-150.0,0.00039,30]
[335555991,1724325179299,-319.341505,0.00039046,14]
[335555992,1724325179336,-319.341505,0.00039046,14]
[335555993,1724325179371,-321.087132,0.00039046,14]
[335555994,1724325179408,-321.087132,0.00039046,14]
[335555995,1724325179444,-409.108063,0.00039046,14]
[335555996,1724325179479,-409.108063,0.00039046,14]
[335555997,1724325179515,-1452.80209204,0.000392,11]
[335555998,1724325179552,-1452.80209204,0.000392,11]
[335555999,1724325179593,-300.0,0.000396,18]
[335556000,1724325179637,-181.62,0.00039673,120]
[335556001,1724325179674,-511.07,0.00039673,120]
[335556002,1724325179710,-293.96344855,0.00039859,30]
[335556003,1724325179747,-657.44075,0.00039922,14]
[335556004,1724325179783,-657.44075,0.00039922,14]
[335556005,1724325179822,-151.0,0.00039922,14]
[335556006,1724325179861,-209.376856,0.00039922,14]
[335556007,1724325179904,-396.80775835,0.0004,120]
[335556008,1724325179943,-18468.53369879,0.0004,120]
[335556009,1724325179979,-254.0,0.0004,30]
[335556010,1724325180015,-153.68469635,0.0004,30]
[335556011,1724325180053,-3003.31080803,0.0004,120]
[335556012,1724325180091,-300.0,0.0004,120]
[335556013,1724325180130,-500.0,0.0004,30]
[335556014,1724325180167,-200.0,0.0004,120]
[335556015,1724325180207,-565.53125159,0.0004,120]
[335556016,1724325180245,-50445.0,0.0004,120]
[335556017,1724325180284,-278.94553895,0.0004,30]
[335556018,1724325180323,-6252.06908798,0.0004,30]
[335556019,1724325180364,-10000.0,0.0004,40]
[335556020,1724325180575,-160.371654,0.0004,14]
[335556021,1724325180614,-160.371654,0.0004,14]
[335556022,1724325180650,-182.708209,0.0004,14]
[335556023,1724325180686,-182.708209,0.0004,14]
[335556024,1724325180722,-150.0,0.0004,30]
[335556025,1724325180772,-151.0,0.0004,14]
[335556026,1724325180812,-200.0,0.00040069,120]
[335556027,1724325180850,-151.0,0.00040164,120]
[335556028,1724325180889,-696.31752949,0.000402,120]
[335556029,1724325180925,-300.0,0.000406,20]
[335556030,1724325180964,-178.31210612,0.00040642,35]
[335556031,1724325181000,-151.0,0.00040672,14]
[335556032,1724325181037,-151.0,0.00040672,14]
[335556033,1724325181075,-500.0,0.00040673,14]
[335556034,1724325181111,-500.0,0.00040673,14]
[335556035,1724325181147,-151.0,0.00040673,14]
[335556036,1724325181184,-151.0,0.00040673,14]
[335556037,1724325181221,-390.646728,0.00040673,14]
[335556038,1724325181259,-500.0,0.00040673,30]
[335556039,1724325181294,-500.0,0.00040673,30]
[335556040,1724325181332,-500.0,0.00040673,30]
[335556041,1724325181367,-496.41313982,0.00040673,30]
[335556042,1724325181402,-390.646733,0.00040673,14]
[335556043,1724325181436,-151.0,0.00040673,14]
[335556044,1724325181472,-228.1,0.00040673,15]
[335556045,1724325181507,-1999.99,0.00040673,14]
[335556046,1724325181542,-151.0,0.00040673,15]
[335556047,1724325181579,-1999.99,0.00040673,14]
[335556048,1724325181614,-834.12,0.000409,14]
[335556049,1724325181648,-500.0,0.00040947,14]
[335556050,1724325181680,-500.0,0.00040947,14]
[335556051,1724325181719,-150.02237106,0.00041,120]
[335556052,1724325181755,-71017.70996678,0.00041,14]
[335556053,1724325186467,-1200.0,0.0003788,28]
[335556054,1724325186503,-1200.0,0.0003788,28]
[335556055,1724325186538,-1200.0,0.0003788,28]
[335556056,1724325186575,-1200.0,0.0003788,28]
[335556057,1724325186614,-1200.0,0.0003788,28]
[335556058,1724325186666,-1200.0,0.0003788,28]
[335556059,1724325186709,-1200.0,0.0003788,28]
[335556060,1724325186750,-70021.43003322,0.00041,14]
[335556061,1724325186787,-200.0,0.00041,30]
[335556062,1724325186824,-152.0,0.00041041,31]
[335556063,1724325186866,-152.0,0.00041041,31]
[335556064,1724325186907,-152.0,0.00041041,31]
[335556065,1724325186949,-152.0,0.00041041,31]
[335556066,1724325186990,-152.0,0.00041041,31]
[335556067,1724325187032,-152.0,0.00041041,31]
[335556068,1724325187072,-152.0,0.00041041,31]
[335556069,1724325187114,-152.0,0.00041041,31]
[335556070,1724325187153,-1000.0,0.00041095,120]
[335556071,1724325187193,-1000.0,0.00041095,120]
[335556072,1724325187232,-913.1230589,0.00041095,120]
[335556073,1724325191323,150.0,0.00041095,30]
[335556074,1724325205367,-278.466,0.00041095,30]
[335556075,1724325205414,-151.0,0.0004126,120]
[335556076,1724325205452,-389.388588,0.00041553,120]
[335556077,1724325205489,-151.0,0.00041616,120]
[335556078,1724325205528,-200.0,0.00041834,120]
[335556079,1724325205569,-345.0,0.00042,120]
[335556080,1724325205607,-1054.48701705,0.00042424,120]
[335556081,1724325205665,-3083.26625956,0.00042424,60]
[335556082,1724325205704,-200.0,0.00042572,120]
[335556083,1724325205742,-500.0,0.00042707,30]
[335556084,1724325205780,-1561.40716356,0.000428,60]
[335556085,1724325205817,-1495.88050562,0.000428,60]
[335556086,1724325205855,-1025.65022479,0.00043,70]
[335556087,1724325205893,-1396.33647499,0.00043,120]
[335556088,1724325205929,-150.0,0.00043,60]
[335556089,1724325205967,-151.0,0.00043068,120]
[335556090,1724325206004,-500.0,0.00043461,120]
[335556091,1724325206041,-3000.0,0.00043835,120]
[335556092,1724325206077,-1855.26295777,0.00043835,120]
[335556093,1724325206112,-154.74467129,0.00044,120]
[335556094,1724325206155,-150.0,0.00044,60]
[335556095,1724325206192,-153.0,0.00044384,120]
[335556096,1724325206230,-153.0,0.00044384,120]
[335556097,1724325206269,-153.0,0.00044384,120]
[335556098,1724325206308,-153.0,0.00044384,120]
[335556099,1724325206347,-153.0,0.00044384,120]
[335556100,1724325206386,-153.0,0.00044384,120]
[335556101,1724325206429,-153.0,0.00044384,120]
[335556102,1724325206467,-153.0,0.00044384,120]
[335556103,1724325206738,-153.0,0.00044384,120]
[335556104,1724325206776,-153.0,0.00044384,120]
[335556105,1724325206816,-153.0,0.00044384,120]
[335556106,1724325206855,-153.0,0.00044384,120]
[335556107,1724325206895,-153.0,0.00044384,120]
[335556108,1724325206932,-153.0,0.00044384,120]
[335556109,1724325206968,-153.0,0.00044384,120]
[335556110,1724325207004,-153.0,0.00044384,120]
[335556111,1724325207039,-153.0,0.00044384,120]
[335556112,1724325207077,-153.0,0.00044384,120]
[335556113,1724325207114,-153.0,0.00044384,120]
[335556114,1724325207153,-153.0,0.00044384,120]
[335556115,1724325207188,-153.0,0.00044384,120]
[335556116,1724325207225,-153.0,0.00044384,120]
[335556117,1724325207264,-153.0,0.00044384,120]
[335556118,1724325207301,-153.0,0.00044384,120]
[335556119,1724325207339,-153.0,0.00044384,120]
[335556120,1724325207376,-153.0,0.00044384,120]
[335556121,1724325207416,-153.0,0.00044384,120]
[335556122,1724325207453,-153.0,0.00044384,120]
[335556123,1724325207489,-153.0,0.00044384,120]
[335556124,1724325207526,-153.0,0.00044384,120]
[335556125,1724325207565,-153.0,0.00044384,120]
[335556126,1724325207604,-153.0,0.00044384,120]
[335556127,1724325207643,-153.0,0.00044384,120]
[335556128,1724325207681,-153.0,0.00044384,120]
[335556129,1724325207718,-153.0,0.00044384,120]
[335556130,1724325207754,-153.0,0.00044384,120]
[335556131,1724325207788,-153.0,0.00044384,120]
[335556132,1724325207825,-153.0,0.00044384,120]
[335556133,1724325207863,-153.0,0.00044384,120]
[335556134,1724325207898,-153.0,0.00044384,120]
[335556135,1724325207934,-153.0,0.00044384,120]
[335556136,1724325207970,-153.0,0.00044384,120]
[335556137,1724325208007,-153.0,0.00044384,120]
[335556138,1724325208045,-153.0,0.00044384,120]
[335556139,1724325208083,-153.0,0.00044384,120]
[335556140,1724325208119,-285000.0,0.0004444,30]
[335556141,1724325208157,-151.0,0.0004444,120]
[335556142,1724325208194,-160.371654,0.0004444,120]
[335556143,1724325208231,-160.371654,0.0004444,120]
[335556144,1724325208267,-182.708209,0.0004444,120]
[335556145,1724325208302,-182.708209,0.0004444,120]
[335556146,1724325208340,-319.341505,0.0004444,120]
[335556147,1724325208377,-319.34151034,0.0004444,120]
[335556148,1724325208413,-321.087132,0.0004444,120]
[335556149,1724325208450,-321.087141,0.0004444,120]
[335556150,1724325208487,-409.108063,0.0004444,120]
[335556151,1724325208522,-409.108068,0.0004444,120]
[335556152,1724325208557,-151.0,0.0004444,120]
[335556153,1724325208598,-151.0,0.0004444,120]
[335556154,1724325208635,-151.0,0.00044521,120]
[335556155,1724325208674,-167.70501441,0.000447,120]
[335556156,1724325208711,-500.0,0.00045,120]
[335556157,1724325208748,-30526.76407669,0.00045,30]
[335556158,1724325208784,-10995.04818464,0.00045,30]
[335556159,1724325208821,-2119.77139147,0.00045,120]
[335556160,1724325208858,-223.19032044,0.00045,120]
[335556161,1724325208896,-500.0,0.00045,120]
[335556162,1724325208934,-422.22969913,0.00045,120]
[335556163,1724325208969,-200.0,0.00045,60]
[335556164,1724325209006,-151.0,0.00045014,120]
[335556165,1724325209043,-3000.0,0.00045205,120]
[335556166,1724325209079,-151.0,0.00045973,120]
[335556167,1724325209115,-2575.67916982,0.00046575,120]
[335556168,1724325209182,4374.510764,0.00041,120]
[335556169,1724325209449,702.06742657,0.00028767,120]
[335556170,1724325211820,591.696675,0.00042424,120]
[335556171,1724325215719,162707.15109773,0.00041,120]
[335556172,1724325216059,591.696675,0.00042424,120]
[335556173,1724325216519,1701.31991191,0.00046342,46]
[335556584,1724325361181,-300.0,0.00012719,2]
[335556585,1724325361205,-12866.70233842,0.0001272,2]
[335556586,1724325361230,-24900.0,0.00012821,2]
[335556587,1724325362827,300.0,0.00012719,2]
[335556794,1724325588979,1075.78750041,0.00012,2]
[335556795,1724325603386,200.0,0.00023,60]
[335556808,1724326080021,210.0,0.00025,120]
[335556810,1724326087431,-21999.79620265,0.00012163,2]
[335556811,1724326107126,188.0,0.0002,120]
[335556812,1724326113746,296.95927708,7e-05,120]
[335556816,1724326122184,10000.0,0.00027,120]
[335556817,1724326122837,504.82364388,0.00021,120]
[335556818,1724326127062,169.64923222,0.00025,120]
[335556819,1724326128679,338.84638473,0.00027,120]
[335556821,1724326130279,10000.0,0.00027,120]
[335556822,1724326139913,10000.0,0.00027,120]
[335556823,1724326143389,309.76695296,8.485e-05,2]
[335556824,1724326147304,10000.0,0.00027,120]
[335556825,1724326153133,130.5116556,7e-05,2]
[335556826,1724326153158,44.0042545,7e-05,2]
[335556827,1724326155395,10000.0,0.00027,120]
[335556828,1724326159351,3620.21503602,8.485e-05,2]
[335556829,1724326165802,21999.79620265,8.485e-05,2]
[335556831,1724326170011,273.37336231,9.9e-05,2]
[335556832,1724326171470,218.74217155,8.485e-05,2]
[335556833,1724326172316,939.08236877,8.485e-05,2]
[335556834,1724326174744,6550.0,0.00027,120]
[335556835,1724326177725,245.39678061,8.485e-05,2]
[335556836,1724326181134,19508.23520775,8.485e-05,2]
[335556837,1724326182134,2112.50283852,8.485e-05,2]
[335556838,1724326182260,405.40975806,8.485e-05,2]
[335556839,1724326183139,174.5159101,7e-05,2]
[335556840,1724326186315,273.37336231,9.9e-05,2]
[335556842,1724326202427,273.37336231,9.9e-05,2]
[335556844,1724326218710,273.37336231,9.9e-05,2]
[335556884,1724326232449,-281.07945898,0.00010285,2]
[335556885,1724326232459,-40.55573907,0.00010285,2]
[335556887,1724326234805,273.37336231,9.9e-05,2]
[335556936,1724326238196,-21959.24046358,0.00010285,2]
[335556938,1724326238206,-3049.73924956,0.00010285,2]
[335556940,1724326238216,-154.84358558,0.00012898,2]
[335556942,1724326238226,-416.27246544,0.00012934,2]
[335556944,1724326238236,-223.54518659,0.00012934,2]
[335556946,1724326238246,-154.9697953,0.00012934,2]
[335556948,1724326238256,-181.62687027,0.00012971,2]
[335556950,1724326238266,-216.60734018,0.00013051,2]
[335556952,1724326238276,-600.77915866,0.00013688,2]
[335556954,1724326238285,-168.20123962,0.00013697,2]
[335556956,1724326238295,-192.797237,0.00014247,2]
[335556958,1724326238305,-441.974076,0.00014247,2]
[335556960,1724326238315,-2640.95997503,0.00015,2]
[335556962,1724326238324,-154.80649189,0.00015,2]
[335556964,1724326238334,-159.090909,0.00015242,2]
[335556966,1724326238344,-159.090909,0.00015321,2]
[335556968,1724326238354,-159.090909,0.000154,2]
[335556970,1724326238364,-159.090909,0.0001548,2]
[335556972,1724326238375,-1123.9224255,0.00015542,2]
[335556974,1724326238385,-159.090909,0.00015559,2]
[335556976,1724326238395,-159.090909,0.00015639,2]
[335556978,1724326238404,-159.090909,0.00015718,2]
[335556980,1724326238414,-159.090909,0.00015798,2]
[335556982,1724326238424,-159.090909,0.00015877,2]
[335556984,1724326238433,-159.090909,0.00015956,2]
[335556987,1724326238444,-159.090909,0.00016036,2]
[335556988,1724326238453,-17408.63017871,0.00017,2]
[335556991,1724326238462,-245.58775665,0.00018,2]
[335557004,1724326238638,-207.6636928,0.00018438,2]
[335557005,1724326238648,-207.6636928,0.00018438,2]
[335557006,1724326238657,-207.6636928,0.00018438,2]
[335557007,1724326238667,-207.6636928,0.00018438,2]
[335557008,1724326238678,-207.6636928,0.00018438,2]
[335557009,1724326238688,-500.0,0.00018521,2]
[335557010,1724326238697,-782.84735433,0.0001854,2]
[335557011,1724326238707,-465.78132729,0.00018757,2]
[335557012,1724326238719,-280.12599512,0.00018868,2]
[335557013,1724326238729,-2419.17185074,0.00018868,2]
[335557015,1724326238739,-500.0,0.00018873,2]
[335557016,1724326238748,-280.1259951,0.00018921,2]
[335557018,1724326238759,-200.0,0.00018944,2]
[335557020,1724326238770,-186560.09152303,0.00018945,2]
[335557022,1724326238781,-2000.0,0.00018968,2]
[335557024,1724326238791,-502.50076074,0.00018973,2]
[335557026,1724326238801,-280.1259951,0.00018973,2]
[335557027,1724326238810,-447.5026127,0.00019,2]
[335557029,1724326238820,-4148.39047445,0.00019,2]
[335557031,1724326238830,-280.1259951,0.00019026,2]
[335557033,1724326238840,-163.0,0.0001903,2]
[335557035,1724326238850,-500.0,0.00019045,2]
[335557037,1724326238862,-292.41788815,0.00019045,2]
[335557039,1724326238873,-500.0,0.00019045,2]
[335557040,1724326238884,-500.0,0.00019045,2]
[335557042,1724326238896,-500.0,0.00019045,2]
[335557044,1724326238907,-349.29920207,0.00019045,2]
[335557046,1724326238916,-185.91415062,0.00019045,2]
[335557048,1724326238926,-500.0,0.00019045,2]
[335557050,1724326238938,-369.91551788,0.00019045,2]
[335557051,1724326238947,-500.0,0.00019045,2]
[335557052,1724326238957,-500.0,0.00019045,2]
[335557053,1724326238970,-500.0,0.00019045,2]
[335557054,1724326238979,-219395.18506612,0.00019046,2]
[335557060,1724326240050,-10537.90071409,0.00019046,2]
[335557094,1724326242946,-23721.07755669,0.00019046,2]
[335557096,1724326242989,-2382.80528044,0.00019046,2]
[335557103,1724326245530,-3991.91373423,0.00019046,2]
[335557117,1724326251830,273.37336231,9.9e-05,2]
[335557118,1724326280235,16323.37799786,9.9e-05,2]
[335557121,1724326378019,3574.50114123,9.9e-05,2]
[335557122,1724326407198,226.78719103,9.9e-05,2]
[335557123,1724326411000,3619.64686258,9.9e-05,2]
[335557124,1724326439655,2515.78122782,9.9e-05,2]
[335557125,1724326460864,447.5026127,0.000269,120]
[335557128,1724326648266,5000.0,0.00015,6]
[335557129,1724326664263,2218.470951,0.00015,6]
[335557131,1724326839027,1640.24017386,9.839e-05,2]
[335557132,1724326857320,21999.79620265,9.524e-05,2]
[335557133,1724326872336,21999.79620265,9.524e-05,2]
[335557134,1724326906310,245.30609513,9.524e-05,2]
[335557135,1724326907616,155.37252349,9.524e-05,2]
[335557136,1724326911876,3312.84647178,9.524e-05,2]
[335557138,1724326915121,218.70409946,9.524e-05,2]
[335557139,1724326915902,405.39053387,9.524e-05,2]
[335557140,1724326917835,1043.44440635,9.524e-05,2]
[335557141,1724326918109,16323.37799786,9.524e-05,2]
[335557142,1724326921636,2112.29265619,9.524e-05,2]
[335557143,1724326922120,4722.19913161,9.524e-05,2]
[335557147,1724326998124,898.81779354,9.899e-05,2]
[335557148,1724327020123,821.17461397,9.524e-05,2]
[335557149,1724327022488,271.57538297,9.524e-05,2]
[335557150,1724327029783,405.4718388,9.524e-05,2]
[335557151,1724327030800,1033.59762914,9.524e-05,2]
[335557152,1724327032076,1655.46213886,9.524e-05,2]
[335557153,1724327044091,156.07985241,9.899e-05,2]
[335557154,1724327047305,364.10028061,9.839e-05,2]
[335557155,1724327049526,207.22971168,9.899e-05,2]
[335557156,1724327058250,156.87056893,9.899e-05,2]
[335557157,1724327063204,273.37336231,9.9e-05,2]
[335557158,1724327078447,273.37336231,9.9e-05,2]
[335557159,1724327094408,273.37336231,9.9e-05,2]
[335557160,1724327101804,405.53882549,9.899e-05,2]
[335557161,1724327110652,273.37336231,9.9e-05,2]
[335557162,1724327112664,230.15361077,9.899e-05,2]
[335557163,1724327127213,194.64157804,9.9e-05,2]
[335557164,1724327142074,680.31074553,9.899e-05,2]
[335557165,1724327195781,187.6304328,9.899e-05,2]
[335557167,1724327318187,154.79103211,9.899e-05,2]
[335557267,1724327438102,-4458.7322025,0.00011948,2]
[335557268,1724327438112,-534.52389159,0.00011987,2]
[335557269,1724327438121,-396.01822435,0.00011999,2]
[335557270,1724327438132,-314.1675348,0.00012005,2]
[335557271,1724327438141,-42424.00214827,0.00012551,2]
[335557272,1724327438150,-300.0,0.00012628,2]
[335557273,1724327438159,-250.0,0.00012667,2]
[335557274,1724327438168,-250.0,0.00012701,2]
[335557275,1724327438177,-250.0,0.00012736,2]
[335557276,1724327438186,-250.0,0.00012771,2]
[335557277,1724327438196,-250.0,0.00012806,2]
[335557278,1724327438210,-250.0,0.0001284,2]
[335557279,1724327438220,-250.0,0.00012875,2]
[335557280,1724327438230,-250.0,0.0001291,2]
[335557281,1724327438239,-250.0,0.00012944,2]
[335557283,1724327438250,-250.0,0.00012979,2]
[335557285,1724327438259,-250.0,0.00013014,2]
[335557287,1724327438269,-250.0,0.00013049,2]
[335557289,1724327438281,-250.0,0.00013083,2]
[335557291,1724327438291,-250.0,0.00013118,2]
[335557293,1724327438301,-250.0,0.00013153,2]
[335557296,1724327438311,-250.0,0.00013188,2]
[335557299,1724327438320,-250.0,0.00013222,2]
[335557301,1724327438329,-250.0,0.00013257,2]
[335557303,1724327438339,-250.0,0.00013292,2]
[335557305,1724327438348,-250.0,0.00013327,2]
[335557306,1724327438358,-290.85048619,0.000137,2]
[335557308,1724327438367,-154.79103211,0.00013792,2]
[335557310,1724327438377,-154.79103211,0.00013792,2]
[335557312,1724327438386,-448.794957,0.00014247,2]
[335557314,1724327438396,-1341.6134714,0.00014338,2]
[335557316,1724327438406,-782.84735433,0.00015,2]
[335557318,1724327438415,-257.24459831,0.00015,2]
[335557320,1724327438425,-2640.95997503,0.00015,2]
[335557322,1724327438434,-320.884366,0.00015057,2]
[335557324,1724327438443,-320.884366,0.00015061,2]
[335557326,1724327438453,-320.884366,0.00015065,2]
[335557328,1724327438462,-320.884366,0.00015069,2]
[335557330,1724327438470,-320.884366,0.00015073,2]
[335557332,1724327438480,-320.884366,0.00015077,2]
[335557334,1724327438488,-320.884366,0.00015081,2]
[335557336,1724327438497,-320.884366,0.00015085,2]
[335557338,1724327438507,-320.884366,0.00015089,2]
[335557340,1724327438516,-320.884366,0.00015093,2]
[335557342,1724327438525,-320.884366,0.00015097,2]
[335557344,1724327438535,-320.884366,0.00015101,2]
[335557346,1724327438544,-320.884366,0.00015105,2]
[335557348,1724327438553,-320.884366,0.00015109,2]
[335557350,1724327438562,-320.884366,0.00015113,2]
[335557352,1724327438571,-320.884366,0.00015117,2]
[335557354,1724327438581,-320.884366,0.0001512,2]
[335557356,1724327438591,-320.884366,0.00015124,2]
[335557358,1724327438600,-320.884366,0.00015128,2]
[335557360,1724327438609,-320.884366,0.00015132,2]
[335557362,1724327438618,-2289.43020322,0.00017,2]
[335557364,1724327438628,-409.12482,0.00017808,2]
[335557366,1724327438638,-409.12482,0.00017808,2]
[335557368,1724327438647,-409.12482,0.00017808,2]
[335557370,1724327438656,-953.69627248,0.00017825,2]
[335557372,1724327438665,-245.58775665,0.00018,2]
[335557374,1724327438675,-409.12482,0.00018278,2]
[335557376,1724327438684,-409.12482,0.00018278,2]
[335557378,1724327438693,-415.2483466,0.00018356,2]
[335557380,1724327438703,-415.3273856,0.00018356,2]
[335557382,1724327438712,-415.3273856,0.00018356,2]
[335557384,1724327438721,-189.4629077,0.00018356,2]
[335557386,1724327438730,-207.6636928,0.00018356,2]
[335557388,1724327438740,-207.6636928,0.00018356,2]
[335557390,1724327438749,-207.1924465,0.00018356,2]
[335557392,1724327438758,-409.12482,0.00018378,2]
[335557394,1724327438768,-207.6636928,0.00018378,2]
[335557396,1724327438778,-500.0,0.00018521,2]
[335557398,1724327438787,-409.12482,0.0001863,2]
[335557400,1724327438796,-409.12482,0.0001863,2]
[335557402,1724327438806,-150.0,0.00018665,2]
[335557404,1724327438816,-2000.0,0.0001867,2]
[335557406,1724327438825,-350.15749391,0.0001868,2]
[335557408,1724327438834,-671.86400793,0.000187,4]
[335557410,1724327438844,-161.84,0.00018758,3]
[335557412,1724327438853,-485.53,0.00018758,3]
[335557414,1724327438862,-14657.82674246,0.0001876,2]
[335557438,1724327439076,-4899.45767914,0.0001876,2]
[335557440,1724327439086,-5219.02485079,0.00018768,2]
[335557443,1724327439096,-6519.09480721,0.0001877,2]
[335557445,1724327439105,-500.0,0.00018779,2]
[335557447,1724327439114,-500.0,0.00018779,2]
[335557449,1724327439124,-456.85219084,0.00018779,2]
[335557451,1724327439134,-500.0,0.00018779,2]
[335557453,1724327439143,-350.15749388,0.0001878,2]
[335557455,1724327439153,-32988.40127749,0.0001878,2]
[335557457,1724327439163,-350.15749388,0.00018879,2]
[335557459,1724327439172,-13038.1896144,0.00018958,2]
[335557461,1724327439181,-13038.1896144,0.00018968,2]
[335557463,1724327439191,-57831.46102966,0.00018978,2]
[335557465,1724327439202,-350.15749388,0.00018979,2]
[335557467,1724327439213,-508.64,0.00019,2]
[335557469,1724327439222,-150.112233,0.00019,2]
[335557471,1724327439231,-167.388311,0.00019,2]
[335557473,1724327439241,-163.0,0.0001904,2]
[335557475,1724327439251,-369.91551788,0.00019046,2]
[335557477,1724327439261,-292.41788815,0.00019046,2]
[335557479,1724327439270,-500.0,0.00019046,2]
[335557481,1724327439283,-500.0,0.00019046,2]
[335557483,1724327439293,-500.0,0.00019046,2]
[335557485,1724327439302,-500.0,0.00019046,2]
[335557487,1724327439313,-500.0,0.00019046,2]